bitfinex/quotes_ETHUSD_20250815
["timestamp","ask_amount","ask_price","bid_price","bid_amount"]
[1755253608853,0.002,4647.0,4646.8,3.284]
[1755253611140,0.002,4647.0,4646.9,3.283]
[1755253612211,0.002,4647.0,4646.6,0.2652676]
[1755253612508,0.002,4647.0,4646.7,3.283]
[1755253613437,2.15393703,4647.0,4646.6,0.2652676]
[1755253613739,2.15393703,4647.0,4646.6,3.5482676]
[1755253613943,0.002,4647.0,4646.6,3.5482676]
[1755253614440,0.8045,4647.0,4646.6,0.1572676]
[1755253614622,0.8045,4647.0,4646.5,3.283]
[1755253614818,0.002,4647.0,4646.5,3.283]
[1755253615006,2.15396144,4647.0,4646.5,3.7345]
[1755253615205,0.002,4647.0,4646.6,0.4538]
[1755253615411,0.002,4647.0,4646.7,0.9053]
[1755253615811,0.002,4647.0,4646.8,0.9053]
[1755253616043,0.002,4647.0,4646.9,3.283]
[1755253616412,0.002,4647.0,4646.9,4.1883]
[1755253617946,0.0012,4647.0,4646.9,4.1883]
[1755253620352,0.0012,4647.0,4646.9,3.283]
[1755253620650,0.0004,4647.0,4646.9,3.283]
[1755253621966,0.0004,4647.0,4646.8,0.108]
[1755253622176,2.15197228,4646.9,4646.8,0.108]
[1755253622363,2.15197228,4646.9,4646.8,3.391]
[1755253622591,2.15233103,4647.0,4646.8,3.391]
[1755253622746,0.0004,4647.0,4646.8,3.391]
[1755253622946,0.0004,4647.0,4646.9,3.283]
[1755253623872,0.0004,4647.0,4646.8,0.1088]
[1755253624040,0.0004,4647.0,4646.9,3.283]
[1755253624666,0.0004,4647.0,4646.8,0.1088]
[1755253624871,2.15232926,4647.0,4646.8,0.1088]
[1755253625185,2.15232597,4647.0,4646.9,3.283]
[1755253625644,0.0004,4647.0,4646.9,4.1883]
[1755253625849,0.0004,4647.0,4646.9,1.58802631]
[1755253626045,0.0004,4647.0,4646.9,18.49333413]
[1755253626261,0.0004,4647.0,4646.9,20.64530641]
[1755253626469,0.0004,4647.0,4646.9,23.64530641]
[1755253626966,0.0004,4647.0,4646.9,21.49333413]
[1755253627372,0.0004,4647.0,4646.9,23.64530641]
[1755253630655,0.0004,4647.0,4646.9,20.36230641]
[1755253630852,0.0004,4647.0,4646.9,23.64430641]
[1755253631058,0.0004,4647.0,4646.9,20.36230641]
[1755253631252,0.0004,4647.0,4646.9,23.64430641]
[1755253632377,0.0004,4647.0,4646.9,20.36230641]
[1755253632680,0.0004,4647.0,4646.9,23.64430641]
[1755253632884,0.0004,4647.0,4646.9,20.36230641]
[1755253633180,0.0004,4647.0,4646.9,23.64430641]
[1755253633380,0.0004,4647.0,4646.9,23.19050641]
[1755253633577,0.0004,4647.0,4646.9,20.58703413]
[1755253633984,0.0004,4647.0,4646.9,3.1072]
[1755253634173,0.0004,4647.0,4646.9,6.3892]
[1755253634681,0.0004,4647.0,4646.9,3.1072]
[1755253634976,0.0004,4647.0,4646.9,6.3892]
[1755253635381,0.0004,4647.0,4646.9,3.1072]
[1755253635554,0.0004,4647.0,4646.9,6.3892]
[1755253636452,0.0004,4647.0,4646.9,3.1072]
[1755253636762,0.0004,4647.0,4646.9,3.282]
[1755253636763,2.15232597,4647.0,4646.9,3.282]
[1755253637082,2.15197228,4646.9,4646.8,0.0008]
[1755253637295,3.16990488,4646.9,4646.8,3.2828]
[1755253637472,2.95447228,4646.9,4646.8,3.2828]
[1755253637789,2.15197228,4646.9,4646.8,3.2828]
[1755253639171,2.15197228,4646.9,4646.8,0.0008]
[1755253639375,2.53007228,4646.9,4646.8,3.2838]
[1755253639796,2.15197228,4646.9,4646.8,0.0018]
[1755253641174,2.66284819,4646.9,4646.8,0.0018]
[1755253641384,3.46534819,4646.9,4646.8,0.0018]
[1755253641771,3.57254819,4646.9,4646.8,0.0018]
[1755253641976,2.77004819,4646.9,4646.8,0.0018]
[1755253643193,2.25917228,4646.9,4646.8,0.0018]
[1755253646200,2.25917228,4646.9,4646.8,0.4332]
[1755253646601,0.0004,4647.0,4646.8,0.4332]
[1755253646768,0.0004,4647.0,4646.9,4.1774]
[1755253646974,0.0004,4647.0,4646.9,4.2854]
[1755253647170,0.0004,4647.0,4646.9,6.08417626]
[1755253647771,0.0004,4647.0,4646.9,2.80217626]
[1755253648130,0.0004,4647.0,4646.9,6.08417626]
[1755253648526,0.0004,4647.0,4646.9,0.108]
[1755253648701,0.0004,4647.0,4646.9,4.1782]
[1755253649399,0.0004,4647.0,4646.9,7.1782]
[1755253649772,0.0004,4647.0,4646.9,3.8962]
[1755253649981,0.0004,4647.0,4646.9,6.7142]
[1755253650203,0.0004,4647.0,4646.9,5.63666404]
[1755253650406,0.0004,4647.0,4646.9,9.38266404]
[1755253650586,0.0004,4647.0,4646.9,11.53463632]
[1755253654779,0.0004,4647.0,4646.9,10.63823632]
[1755253656028,0.0004,4647.0,4646.9,7.35723632]
[1755253656325,0.0004,4647.0,4646.9,8.48626404]
[1755253656622,0.0004,4647.0,4646.9,6.2818]
[1755253656983,0.0004,4647.0,4646.9,3.0008]
[1755253657318,0.0004,4647.0,4646.9,6.2818]
[1755253658309,0.0004,4647.0,4646.9,3.0008]
[1755253658527,0.0004,4647.0,4646.9,6.2818]
[1755253659929,0.0016,4647.1,4647.0,3.0]
[1755253660536,0.0016,4647.1,4647.0,3.1072]
[1755253660897,0.0016,4647.1,4647.0,3.3882]
[1755253662931,0.0016,4647.1,4647.0,6.3882]
[1755253663096,0.0008,4647.1,4647.0,8.1377952]
[1755253663722,0.0008,4647.1,4647.0,10.28972117]
[1755253664038,0.0008,4647.1,4647.0,8.1377952]
[1755253664204,0.0008,4647.1,4647.0,10.28972117]
[1755253664400,0.0008,4647.1,4647.0,10.18252117]
[1755253664605,0.0008,4647.1,4647.0,10.28972117]
[1755253665232,0.0008,4647.1,4647.0,7.2423952]
[1755253665433,0.0008,4647.1,4647.0,6.3882]
[1755253665645,0.0008,4647.1,4647.0,4.0026]
[1755253665816,0.0008,4647.1,4647.0,7.2836]
[1755253666005,0.0008,4647.1,4647.0,9.43552597]
[1755253666850,0.0008,4647.1,4647.0,6.3882]
[1755253667046,0.0008,4647.1,4647.0,3.1072]
[1755253667351,0.0008,4647.1,4647.0,6.389]
[1755253668353,0.0008,4647.1,4647.0,3.108]
[1755253668549,0.0008,4647.1,4647.0,6.389]
[1755253668852,0.0008,4647.1,4647.0,3.108]
[1755253669051,0.0008,4647.1,4647.0,6.389]
[1755253669355,0.0008,4647.1,4647.0,6.8204]
[1755253669549,0.0008,4647.1,4647.0,3.5394]
[1755253669746,0.0008,4647.1,4647.0,6.8204]
[1755253670249,0.0008,4647.1,4647.0,8.22814102]
[1755253670452,0.0008,4647.1,4647.0,10.38006699]
[1755253676151,0.0008,4647.1,4647.0,7.09906699]
[1755253676357,0.0008,4647.1,4647.0,10.37906699]
[1755253680228,0.0008,4647.1,4647.0,9.48366699]
[1755253680432,0.0008,4647.1,4647.0,10.42456699]
[1755253690284,0.0008,4647.1,4647.0,9.93386699]
[1755253690453,0.0008,4647.1,4647.0,7.14456699]
[1755253690658,0.0008,4647.1,4647.0,10.42456699]
[1755253691047,0.0008,4647.1,4647.0,7.14456699]
[1755253691242,0.0008,4647.1,4647.0,10.42456699]
[1755253691777,0.0008,4647.1,4647.0,7.14456699]
[1755253691962,0.0008,4647.1,4647.0,10.42356699]
[1755253692482,0.0008,4647.1,4647.0,9.93286699]
[1755253692888,0.0008,4647.1,4647.0,10.42356699]
[1755253693657,0.0008,4647.1,4647.0,10.97356699]
[1755253695390,0.1072,4648.9,4648.1,2.15139132]
[1755253695546,0.1072,4648.9,4647.1,3.0]
[1755253695547,0.3781,4648.8,4648.2,0.43028987]
[1755253695749,0.3781,4648.8,4647.4,13.53662754]
[1755253695750,0.4244,4648.7,4648.4,3.0]
[1755253695995,0.8025,4648.6,4648.5,3.279]
[1755253696165,3.12,4650.0,4648.4,13.53662754]
[1755253696497,1.52611402,4650.8,4650.7,2.15021394]
[1755253696868,1.52611402,4650.8,4650.7,5.48321394]
[1755253697065,0.2495,4651.5,4651.0,2.15007525]
[1755253697300,0.2495,4651.5,4651.0,1.06332892]
[1755253697613,0.2495,4651.5,4650.9,3.332]
[1755253697614,2.15003466,4651.1,4650.9,3.332]
[1755253697894,0.8025,4651.0,4650.9,3.334]
[1755253698108,0.8025,4651.0,4649.5,0.4907]
[1755253698109,0.8025,4651.0,4648.9,0.8746]
[1755253698308,2.15024684,4650.7,4649.0,3.335]
[1755253698512,2.15036007,4650.4,4649.2,2.15090024]
[1755253698684,2.15036007,4650.4,4649.3,3.335]
[1755253699000,0.8025,4650.3,4649.3,3.49803448]
[1755253699199,2.95292951,4650.3,4649.3,5.64888383]
[1755253699391,1.08483612,4655.7,4649.4,16.53662754]
[1755253699392,0.8025,4650.8,4649.4,16.53662754]
[1755253699705,2.15031806,4650.5,4649.5,5.48472315]
[1755253700003,0.3781,4650.4,4649.5,3.334]
[1755253700296,0.29527602,4650.3,4649.5,3.334]
[1755253700502,2.52845309,4650.4,4649.5,3.334]
[1755253700999,0.02016281,4650.3,4649.6,3.333]
[1755253701181,2.95297736,4650.2,4649.6,3.333]
[1755253701497,2.15059645,4649.9,4649.7,3.332]
[1755253701698,2.52869645,4649.9,4649.7,3.332]
[1755253701867,0.8025,4649.8,4649.7,3.332]
[1755253702072,0.8017,4649.8,4649.7,3.332]
[1755253702271,0.6917,4649.8,4649.5,3.332]
[1755253702466,0.3781,4649.7,4649.3,0.1648328]
[1755253702691,2.15095257,4649.2,4648.9,1.20555196]
[1755253702877,0.3781,4649.1,4648.9,1.20555196]
[1755253703082,0.3781,4649.0,4648.9,1.20555196]
[1755253703289,0.6310069,4649.0,4648.9,1.20555196]
[1755253703483,2.78200711,4649.0,4648.9,1.20555196]
[1755253704008,0.6310069,4649.0,4648.9,1.20555196]
[1755253704217,2.78200711,4649.0,4648.9,1.20555196]
[1755253704583,2.40390711,4649.0,4648.9,1.20555196]
[1755253705221,2.40310711,4649.0,4648.9,1.20555196]
[1755253705794,2.51030711,4649.0,4648.9,1.20555196]
[1755253706478,2.88840711,4649.0,4648.9,1.20555196]
[1755253706679,2.51030711,4649.0,4648.9,1.20555196]
[1755253706906,3.20200711,4649.0,4648.9,1.20555196]
[1755253707422,2.15104648,4648.9,4648.8,0.001]
[1755253707595,2.68635184,4648.9,4648.8,0.001]
[1755253708991,3.39821465,4648.9,4648.8,0.001]
[1755253709215,3.37805184,4648.9,4648.8,0.001]
[1755253709416,2.68635184,4648.9,4648.8,0.001]
[1755253709599,0.53530536,4648.9,4648.8,0.001]
[1755253709814,2.15104648,4648.9,4648.8,0.001]
[1755253710411,0.1072,4649.0,4648.8,0.001]
[1755253711192,0.6917,4649.8,4648.8,0.001]
[1755253711486,0.1072,4649.4,4648.8,0.001]
[1755253712029,0.02016281,4649.3,4648.8,0.001]
[1755253712244,2.15099055,4649.1,4648.8,0.001]
[1755253712389,2.15090768,4649.2,4648.8,0.001]
[1755253712588,2.15104648,4648.9,4648.8,0.001]
[1755253713189,2.1510069,4649.0,4648.8,0.001]
[1755253713830,2.15096345,4649.1,4648.8,0.001]
[1755253714820,2.15100656,4649.0,4648.8,0.4498]
[1755253714991,2.15104648,4648.9,4648.8,0.001]
[1755253715189,2.15101276,4649.0,4648.8,0.001]
[1755253715389,2.15096536,4649.1,4648.8,0.001]
[1755253715585,3.2492,4649.2,4648.8,0.001]
[1755253715586,2.15100051,4649.0,4648.8,0.001]
[1755253715990,2.15100051,4649.0,4648.8,0.0018]
[1755253716731,5.40014746,4649.2,4648.8,0.0018]
[1755253716894,2.15097869,4649.1,4648.8,0.0018]
[1755253717095,3.2492,4649.2,4648.9,0.9291]
[1755253717294,3.2492,4649.2,4649.0,1.0363]
[1755253717601,3.2492,4649.2,4649.1,4.2521]
[1755253718731,3.2492,4649.2,4649.0,0.1072]
[1755253719040,3.2492,4649.2,4649.0,0.5875]
[1755253719220,2.1508583,4649.4,4649.0,0.5875]
[1755253719422,2.15077822,4649.5,4649.0,0.5875]
[1755253719735,2.15082009,4649.4,4649.0,0.1072]
[1755253719931,5.50715837,4649.6,4649.1,0.4488]
[1755253720137,2.25795837,4649.6,4649.2,0.9291]
[1755253720334,2.25795837,4649.6,4649.2,0.4803]
[1755253720639,2.15078391,4649.5,4649.2,0.9291]
[1755253720945,2.15082425,4649.4,4649.0,0.1072]
[1755253721125,2.15082425,4649.4,4649.0,0.556]
[1755253721437,2.15077934,4649.5,4649.1,0.9291]
[1755253721605,2.15077934,4649.5,4649.0,0.1072]
[1755253721800,0.1072,4649.6,4649.2,0.9291]
[1755253722115,0.1072,4649.8,4649.3,17.78772754]
[1755253722314,0.1072,4649.8,4649.3,16.85862754]
[1755253722506,0.1072,4649.8,4649.4,0.9291]
[1755253722902,0.1072,4649.8,4649.3,16.85862754]
[1755253722903,2.25783212,4649.8,4649.5,0.9291]
[1755253723115,2.15067638,4649.7,4649.6,3.321]
[1755253723536,0.1072,4649.8,4649.0,0.1072]
[1755253723720,0.002,4649.4,4648.8,0.0018]
[1755253723922,2.15104648,4648.9,4648.8,0.0018]
[1755253724707,2.52914648,4648.9,4648.8,0.0018]
[1755253725264,2.15104648,4648.9,4648.8,0.0018]
[1755253725409,2.84274648,4648.9,4648.8,0.0018]
[1755253725612,3.3528392,4648.9,4648.8,0.0018]
[1755253725829,6.6728392,4648.9,4648.8,0.0018]
[1755253728251,5.9811392,4648.9,4648.8,0.0018]
[1755253729660,6.3592392,4648.9,4648.8,0.0018]
[1755253730057,6.6728392,4648.9,4648.8,0.0018]
[1755253730238,3.3528392,4648.9,4648.8,0.0018]
[1755253730439,6.6718392,4648.9,4648.8,0.0018]
[1755253730635,5.9801392,4648.9,4648.8,0.0018]
[1755253730836,2.7683392,4648.9,4648.8,0.0018]
[1755253731062,2.25824648,4648.9,4648.8,0.0018]
[1755253731660,2.27840929,4648.9,4648.8,0.0018]
[1755253731828,2.97010929,4648.9,4648.8,0.0018]
[1755253732030,5.57624648,4648.9,4648.8,0.0018]
[1755253732458,5.95434648,4648.9,4648.8,0.0018]
[1755253732760,6.4181392,4648.9,4648.8,0.0018]
[1755253732943,7.1098392,4648.9,4648.8,0.0018]
[1755253733331,6.7962392,4648.9,4648.8,0.0018]
[1755253733745,6.4181392,4648.9,4648.8,0.0018]
[1755253737277,7.1098392,4648.9,4648.8,0.0018]
[1755253737636,6.4181392,4648.9,4648.8,0.0018]
[1755253738382,5.57624648,4648.9,4648.8,0.0018]
[1755253741367,5.95434648,4648.9,4648.8,0.0018]
[1755253741595,6.26794648,4648.9,4648.8,0.0018]
[1755253741956,5.95434648,4648.9,4648.8,0.0018]
[1755253742171,5.57624648,4648.9,4648.8,0.0018]
[1755253742371,9.6361792,4648.9,4648.8,0.0018]
[1755253744191,10.1861792,4648.9,4648.8,0.0018]
[1755253744489,10.5634792,4648.9,4648.8,0.0018]
[1755253744694,10.1853792,4648.9,4648.8,0.0018]
[1755253746783,10.5634792,4648.9,4648.8,0.0018]
[1755253746978,10.5634792,4648.9,4648.8,1e-08]
[1755253746979,10.8770792,4648.9,4648.8,1e-08]
[1755253747398,10.8762792,4648.9,4648.8,1e-08]
[1755253747890,10.5626792,4648.9,4648.8,1e-08]
[1755253748261,10.1845792,4648.9,4648.8,1e-08]
[1755253752308,10.64792365,4648.9,4648.8,1e-08]
[1755253752501,13.64792365,4648.9,4648.8,1e-08]
[1755253752699,13.64792365,4648.9,4648.3,1e-08]
[1755253752700,3.55,4648.7,4648.3,1e-08]
[1755253752888,3.6572,4648.4,4648.3,1e-08]
[1755253753092,9.13484066,4648.4,4648.3,1e-08]
[1755253753400,13.05637784,4648.4,4648.3,1e-08]
[1755253753764,13.25761933,4648.4,4648.3,1e-08]
[1755253754596,13.72096378,4648.4,4648.3,1e-08]
[1755253754798,14.5316965,4648.4,4648.3,1e-08]
[1755253755002,0.55,4648.1,4647.8,1e-08]
[1755253755176,5.70150928,4647.9,4647.8,1e-08]
[1755253755383,12.25670927,4647.9,4647.8,1e-08]
[1755253755698,13.41175372,4647.9,4647.8,1e-08]
[1755253755900,14.57011865,4647.9,4647.8,1e-08]
[1755253756203,14.25651865,4647.9,4647.8,1e-08]
[1755253756704,13.87841865,4647.9,4647.8,1e-08]
[1755253757297,14.25651865,4647.9,4647.8,1e-08]
[1755253757501,2.15197228,4646.9,4646.8,0.001]
[1755253757679,6.01492268,4646.9,4646.8,0.001]
[1755253757880,5.99555987,4646.9,4646.8,0.001]
[1755253759871,5.99555987,4646.9,4646.3,0.4712]
[1755253759872,0.55,4646.5,4646.3,0.001]
[1755253760084,9.38256666,4646.4,4646.3,0.001]
[1755253760304,9.36320385,4646.4,4646.3,0.001]
[1755253767598,2.70234282,4646.1,4646.0,0.001]
[1755253767804,6.02570563,4646.1,4646.0,0.4473]
[1755253768003,7.19085288,4646.1,4646.0,0.4473]
[1755253768514,7.19085288,4646.1,4646.0,0.001]
[1755253769101,6.64085288,4646.1,4646.0,0.9198]
[1755253769309,5.56434282,4646.1,4646.0,0.9198]
[1755253772704,2.26034282,4646.1,4646.0,0.9198]
[1755253782046,2.27970563,4646.1,4646.0,0.001]
[1755253782347,2.26034282,4646.1,4646.0,0.001]
[1755253782540,3.03170212,4646.1,4646.0,0.001]
[1755253784751,3.03170212,4646.1,4646.0,0.9198]
[1755253784960,2.26034282,4646.1,4646.0,0.9198]
[1755253787765,2.15234282,4646.1,4646.0,0.9198]
[1755253789565,2.15154282,4646.1,4646.0,0.9198]
[1755253790265,2.15154282,4646.1,4646.0,0.4473]
[1755253792141,2.9139584,4646.1,4646.0,0.001]
[1755253792534,2.9139584,4646.1,4646.0,0.4614]
[1755253792843,2.15154282,4646.1,4646.0,0.4614]
[1755253793054,2.15154282,4646.1,4646.0,0.9565]
[1755253794070,2.15154282,4646.1,4646.0,0.4614]
[1755253794437,2.15154282,4646.1,4646.0,0.9565]
[1755253797538,2.15154282,4646.1,4646.0,0.001]
[1755253798172,2.25954282,4646.1,4646.0,0.001]
[1755253799179,2.25954282,4646.1,4646.0,0.4614]
[1755253799578,2.25954282,4646.1,4646.0,0.9565]
[1755253800569,2.25954282,4646.1,4646.0,0.001]
[1755253801042,2.25954282,4646.1,4646.0,0.0018]
[1755253801474,2.25954282,4646.1,4646.0,0.9573]
[1755253803774,2.25954282,4646.1,4646.0,0.0018]
[1755253804378,3.05038493,4646.1,4645.6,0.001]
[1755253804680,2.26052814,4645.7,4645.6,0.001]
[1755253804845,5.55052814,4645.7,4645.6,0.001]
[1755253805182,6.24222814,4645.7,4645.6,0.001]
[1755253805480,7.54667553,4645.7,4645.6,0.001]
[1755253805779,6.85497553,4645.7,4645.6,0.001]
[1755253806480,6.3899945,4645.7,4645.6,0.001]
[1755253808480,5.55052814,4645.7,4645.6,0.9565]
[1755253808685,5.55052814,4645.7,4645.6,0.001]
[1755253809843,6.10052814,4645.7,4645.6,0.001]
[1755253810079,9.79222814,4645.7,4645.6,1e-08]
[1755253810270,10.6175245,4645.7,4645.6,1e-08]
[1755253810472,11.0817847,4645.7,4645.6,1e-08]
[1755253813092,5.70280618,4645.1,4645.0,1e-08]
[1755253813265,2.70289887,4644.9,4644.1,0.001]
[1755253813449,3.0,4645.0,4644.1,0.001]
[1755253813450,0.108,4644.7,4644.1,0.001]
[1755253813651,6.398,4644.7,4644.1,0.001]
[1755253814150,9.47909158,4644.7,4644.6,1e-08]
[1755253814350,10.50166158,4644.7,4644.6,1e-08]
[1755253814753,10.18806158,4644.7,4644.6,1e-08]
[1755253814954,2.70313065,4644.4,4644.3,1e-08]
[1755253815197,6.10113065,4644.4,4644.3,1e-08]
[1755253815495,3.14893631,4644.4,4644.3,1e-08]
[1755253815782,3.14893631,4644.4,4644.3,0.95550001]
[1755253815783,6.43893631,4644.4,4644.3,0.95550001]
[1755253816766,6.43893631,4644.4,4644.3,1e-08]
[1755253818775,2.15326974,4644.1,4643.9,1e-08]
[1755253819002,9.25943809,4644.0,4643.9,1e-08]
[1755253819295,10.05913809,4644.0,4643.9,1e-08]
[1755253820001,9.74553809,4644.0,4643.9,1e-08]
[1755253820302,10.05913809,4644.0,4643.9,1e-08]
[1755253821014,15.22813809,4644.0,4643.9,1e-08]
[1755253821883,15.69031264,4644.0,4643.9,1e-08]
[1755253822372,15.14031264,4644.0,4643.9,1e-08]
[1755253822570,15.89077031,4644.0,4643.9,1e-08]
[1755253823296,16.46746045,4644.0,4643.9,1e-08]
[1755253824388,18.73446045,4644.0,4643.9,1e-08]
[1755253824899,18.15777031,4644.0,4643.9,1e-08]
[1755253825435,2.15419745,4642.1,4642.0,0.9643]
[1755253825588,5.44619745,4642.1,4642.0,0.9643]
[1755253825800,2.26219745,4642.1,4642.0,0.9643]
[1755253827266,0.108,4642.1,4642.0,0.9643]
[1755253827787,0.108,4642.1,4642.0,6.51497386]
[1755253828103,0.108,4643.0,4642.2,2.15411514]
[1755253828303,3.402,4643.0,4642.3,1.0723]
[1755253828603,3.402,4643.0,4642.4,0.9643]
[1755253828779,0.108,4643.0,4642.5,0.9643]
[1755253829100,0.108,4643.0,4642.6,0.9643]
[1755253829601,2.15382627,4642.9,4642.7,0.9643]
[1755253829768,2.26178748,4643.0,4642.3,0.108]
[1755253830104,2.26178748,4643.0,4642.8,0.9643]
[1755253830299,0.108,4643.0,4642.3,2.26210079]
[1755253830504,0.108,4643.0,4642.9,0.9643]
[1755253830872,0.108,4643.3,4642.9,0.9643]
[1755253831072,0.108,4643.3,4643.0,0.9643]
[1755253831298,0.108,4643.3,4643.1,0.9643]
[1755253831568,2.15374124,4643.1,4642.6,0.108]
[1755253831801,2.15297767,4643.1,4642.2,2.15413933]
[1755253832002,2.15378279,4643.0,4642.4,0.108]
[1755253832276,2.15378279,4643.0,4642.5,0.9643]
[1755253832605,2.15378279,4643.0,4642.6,0.9643]
[1755253832811,2.15382721,4642.9,4642.7,0.9643]
[1755253832976,2.1537798,4643.1,4642.7,0.9643]
[1755253833178,2.15378034,4643.0,4642.8,0.9643]
[1755253833480,2.15378034,4643.0,4642.9,0.9643]
[1755253833901,2.15378034,4643.0,4642.4,0.108]
[1755253833902,2.15401184,4642.5,4642.4,0.5727]
[1755253834100,2.26201184,4642.5,4642.4,0.4647]
[1755253834307,2.15405824,4642.4,4642.3,0.4996]
[1755253834604,2.15405824,4642.4,4642.3,0.9643]
[1755253834977,2.15431386,4641.9,4641.4,0.108]
[1755253835176,0.108,4642.5,4641.9,0.4647]
[1755253835177,5.44924386,4642.0,4641.9,0.4647]
[1755253835625,5.55724386,4642.0,4641.9,0.9643]
[1755253837282,2.26224386,4642.0,4641.9,0.9643]
[1755253839192,0.108,4642.0,4641.2,0.108]
[1755253839393,2.15449749,4641.5,4641.3,0.4996]
[1755253839614,2.15449749,4641.5,4641.3,0.9643]
[1755253839916,3.293,4641.9,4641.3,0.9643]
[1755253840105,2.1544295,4641.6,4641.0,0.108]
[1755253840310,2.15447592,4641.5,4641.4,0.9643]
[1755253844326,2.15444196,4641.6,4641.4,0.9643]
[1755253844628,2.15444196,4641.6,4641.5,0.9643]
[1755253845426,0.108,4641.7,4641.5,0.9643]
[1755253845612,0.108,4641.7,4641.6,0.98584429]
[1755253845790,0.108,4641.7,4641.6,3.16876404]
[1755253846109,2.15409532,4642.4,4641.7,2.15437487]
[1755253846311,2.15409532,4642.4,4641.8,3.0]
[1755253846484,2.15409532,4642.4,4641.9,0.9643]
[1755253846696,2.15354324,4643.6,4642.0,0.9643]
[1755253846895,3.294,4643.4,4642.2,2.15411108]
[1755253847108,2.15386527,4642.9,4642.3,0.9643]
[1755253847429,3.294,4643.4,4642.4,0.9643]
[1755253847624,2.15389909,4642.8,4642.4,0.9643]
[1755253847824,2.15389909,4642.8,4642.5,0.4647]
[1755253848031,2.15389909,4642.8,4642.5,0.9643]
[1755253848329,2.15389909,4642.8,4642.6,0.9643]
[1755253848625,2.15389909,4642.8,4642.7,0.9643]
[1755253850596,2.15400833,4642.6,4642.1,0.8448234]
[1755253850791,2.15401184,4642.5,4642.4,0.9643]
[1755253851008,2.15392166,4642.7,4642.4,0.9643]
[1755253851323,2.15361802,4643.4,4642.6,13.52877909]
[1755253851511,2.15361802,4643.4,4642.7,0.9643]
[1755253851821,2.15374989,4643.1,4642.8,0.9643]
[1755253852124,2.15377988,4643.0,4642.9,0.9402]
[1755253853843,2.15372664,4643.2,4642.9,0.9402]
[1755253854042,2.15372664,4643.2,4642.6,13.52877909]
[1755253854229,2.15372664,4643.2,4643.0,0.9402]
[1755253854529,2.15372664,4643.2,4643.1,0.9402]
[1755253855039,5.173,4644.1,4643.1,0.9402]
[1755253855040,5.173,4644.1,4643.1,14.46897909]
[1755253855200,2.15353581,4643.6,4643.2,0.9402]
[1755253855400,2.15353581,4643.6,4643.3,0.9402]
[1755253855615,2.15336247,4643.9,4643.1,13.52877909]
[1755253855820,2.15355216,4643.5,4643.4,0.9402]
[1755253860336,3.4,4643.8,4643.1,0.108]
[1755253860535,2.15387266,4642.8,4642.7,4.3402]
[1755253860738,2.15387266,4642.8,4642.7,1.21333879]
[1755253860932,2.15387266,4642.8,4642.7,1.21413879]
[1755253861643,2.15384033,4642.9,4642.7,1.21413879]
[1755253861812,2.15384033,4642.9,4642.7,0.74863879]
[1755253862013,2.15384033,4642.9,4642.8,0.9402]
[1755253862634,3.292,4643.3,4642.8,0.9402]
[1755253862948,2.15369184,4643.2,4642.9,0.9402]
[1755253863144,2.15364072,4643.3,4643.0,0.9402]
[1755253863455,2.1537812,4643.0,4642.7,3.73943879]
[1755253863824,2.15364072,4643.3,4642.8,0.9402]
[1755253864021,2.26160027,4643.4,4642.9,0.9402]
[1755253864228,2.15364329,4643.3,4643.0,0.9402]
[1755253864437,2.15368846,4643.2,4643.0,0.9402]
[1755253864811,0.108,4643.4,4643.0,0.4747]
[1755253865030,2.2616065,4643.4,4643.1,0.9402]
[1755253865214,2.2616065,4643.4,4642.7,3.27393879]
[1755253865436,2.15364072,4643.3,4643.2,0.9402]
[1755253866022,2.26159636,4643.4,4643.2,0.9402]
[1755253866217,0.108,4643.4,4643.3,0.9402]
[1755253866719,2.26159434,4643.4,4643.3,0.9402]
[1755253867428,2.26159434,4643.4,4643.3,0.4655]
[1755253867751,2.26159434,4643.4,4642.7,3.27393879]
[1755253867752,2.26159434,4643.4,4643.0,0.9402]
[1755253867948,2.15368965,4643.2,4643.0,0.9402]
[1755253868139,0.108,4643.4,4643.1,14.46897909]
[1755253868342,0.108,4644.0,4643.2,3.0]
[1755253868527,0.108,4644.0,4643.4,0.108]
[1755253868715,2.15354003,4643.6,4643.2,6.291]
[1755253868920,2.15354003,4643.6,4643.3,0.9402]
[1755253869230,2.15350497,4643.6,4643.2,6.291]
[1755253869747,2.15350497,4643.6,4643.2,7.2312]
[1755253869946,0.108,4643.7,4643.3,0.9402]
[1755253870940,2.15350159,4643.6,4643.3,0.9402]
[1755253871454,2.15355615,4643.5,4643.3,0.9402]
[1755253871954,2.15350949,4643.6,4643.3,0.9402]
[1755253872151,2.15356343,4643.5,4643.2,6.291]
[1755253872559,2.15356343,4643.5,4643.2,6.7565]
[1755253872727,2.15356343,4643.5,4643.2,7.2312]
[1755253872928,2.15351543,4643.6,4643.2,7.2312]
[1755253873334,0.108,4643.7,4643.2,7.2312]
[1755253873335,2.26146006,4643.7,4643.2,7.2312]
[1755253873867,2.15357681,4643.5,4643.2,7.2312]
[1755253874065,0.44149879,4643.5,4642.7,4.10613879]
[1755253874256,2.15373349,4643.1,4643.0,3.0]
[1755253874446,2.15369429,4643.2,4643.0,3.0]
[1755253874653,0.108,4643.7,4642.9,3.291]
[1755253874841,2.15387266,4642.8,4642.7,0.16593879]
[1755253876478,2.15387266,4642.8,4642.7,0.0008]
[1755253886701,2.17323547,4642.8,4642.7,0.0008]
[1755253886999,2.9264769,4642.8,4642.7,0.0008]
[1755253887205,3.3045769,4642.8,4642.7,0.0008]
[1755253887912,2.9264769,4642.8,4642.7,0.0008]
[1755253890474,6.2174769,4642.8,4642.7,0.0008]
[1755253893306,6.5955769,4642.8,4642.7,0.0008]
[1755253894915,6.2174769,4642.8,4642.7,0.0008]
[1755253895217,6.5955769,4642.8,4642.7,0.0008]
[1755253895892,6.2174769,4642.8,4642.7,0.0008]
[1755253902419,2.15401184,4642.5,4642.4,1e-08]
[1755253902604,8.57237465,4642.5,4642.4,1e-08]